[Event "Marshall CC FIDE Premier November 2024"]
[Site "New York"]
[Date "2024.11.02"]
[Round "1.1"]
[White "Knowles, Chase"]
[Black "Putnam, Liam"]
[Result "1/2-1/2"]
[ECO "A09"]
[WhiteElo "1966"]
[BlackElo "2388"]
[Annotator "TA"]
[PlyCount "99"]
[EventDate "2024.11.01"]
[EventType "swiss"]
[EventCountry "USA"]
[SourceTitle "playchess.com"]
[Source "ChessBase"]
[SourceQuality "1"]
[TimeControl "5400+30"]

{[%evp 9,99,-14,3,-18,-12,-12,-18,-14,-12,-16,0,-11,0,0,0,0,39,-3,11,0,0,0,0,0,0,-10,0,-31,-33,-36,-30,-31,-38,-63,-68,-66,-45,-64,-31,-35,-35,-46,0,-15,26,17,27,52,52,37,120,120,129,122,180,177,179,175,168,163,152,0,133,89,133,0,0,0,0,0,68,17,17,17,17,17,17,0,17,17,35,0,26,17,17,0,33,0,33,0,17,0]} 1. Nf3 {[%emt 0:00:01]} d5 {[%emt 0:00:53]} 2. c4 {[%emt 0:00:32]} d4 {[%emt 0:00:22]} 3. b4 {[%emt 0:00:08]} Nf6 {[%emt 0:01:17]} 4. Bb2 {[%emt 0:00:29]} c5 {[%emt 0:00:05]} 5. g3 {[%emt 0:01:57]} Qc7 {[%emt 0:01:57]} 6. d3 {[%emt 0:02:54]} e5 {[%emt 0:00:34]} 7. b5 {[%emt 0:02:04]} Bd6 {[%emt 0:02:12]} 8. Nbd2 {[%emt 0:00:45]} O-O {[%emt 0:00:15]} 9. Bg2 {[%emt 0:00:14]} Bg4 {[%emt 0:07:58]} 10. h3 {[%emt 0:04:09]} Bf5 {[%emt 0:02:47]} 11. g4 {[%emt 0:02:56]} Bc8 {[%emt 0:03:57]} 12. a4 {[%emt 0:02:12]} Re8 {[%emt 0:03:09]} 13. Ng5 {[%emt 0:03:05]} Nbd7 {[%emt 0:01:05][%cal Bb8d7,Bd7f8,Bf8g6,Bg6h4,Bh4f3][%mdl 32]} 14. a5 {[%emt 0:01:44]} Rb8 {[%emt 0:06:56]} 15. Bc1 {[%emt 0:07:20]} Nf8 {[%emt 0:02:59]} 16. Nde4 {[%emt 0:05:36]} Nxe4 {[%emt 0:00:25]} 17. Nxe4 {[%emt 0:01:19]} Be7 {[%emt 0:05:56]} 18. Bg5 {[%emt 0:07:01]} Ng6 {[%emt 0:01:52]} 19. Bf3 {[%emt 0:05:43]} f6 {[%emt 0:02:33] Repels h4} 20. Bd2 {[%emt 0:04:14]} Nh4 {[%emt 0:00:04]} 21. Rg1 {[%emt 0:00:43]} Nxf3+ {[%emt 0:01:08]} 22. exf3 {[%emt 0:00:05][%cal Be2f3,Bf3f4,Bf4f5][%mdl 32]} Rf8 {[%emt 0:03:36]} 23. Qe2 {[%emt 0:02:41]} a6 {[%emt 0:00:42] Strongly threatening ...axb5.} 24. b6 $1 {[%emt 0:04:02]} Qc6 {[%emt 0:00:11]} 25. Ng3 {[%emt 0:02:15]} Bd7 {[%emt 0:05:30]} 26. Qe4 $1 {[%emt 0:04:53]} Qe6 {[%emt 0:13:02]} 27. f4 $1 {[%emt 0:07:24]} Bc6 {[%emt 0:08:47]} 28. Qe2 {[%emt 0:00:30]} Qd7 {[%emt 0:00:55]} 29. f5 {[%emt 0:00:40]} e4 {[%emt 0:10:01]} 30. Nxe4 $16 {[%emt 0:03:02]} Rbe8 {[%emt 0:00:37]} 31. f3 {[%emt 0:01:37]} g6 {[%emt 0:00:10]} (31... Bd6 $16 {was necessary.} 32. Qg2 Kh8) 32. fxg6 $18 {[%emt 0:04:06]} hxg6 {[%emt 0:00:05]} 33. O-O-O {[%emt 0:00:09]} Bd6 {[%emt 0:01:33]} 34. Qf2 {[%emt 0:01:45]} Re6 {[%emt 0:01:45]} 35. Qh4 $2 {[%emt 0:02:00]} ({White should try} 35. h4 $16) 35... Rf7 {[%emt 0:01:14] [#]} (35... Rxe4 $11 36. fxe4 Bxe4 37. dxe4 Qa4) 36. Rde1 $1 $16 {[%emt 0:02:22] White is much more active.} Bxe4 {[%emt 0:01:53]} 37. fxe4 {[%emt 0:00:22]} (37. Rxe4 $16 Rxe4 38. fxe4) 37... Rh7 $1 $11 {[%emt 0:00:24]} 38. Qf2 {[%emt 0:01:23]} Rxh3 {[%emt 0:02:08]} 39. Qf1 {[%emt 0:00:58]} Qh7 {[%emt 0:01:27]} (39... Rg3 $11) 40. Rh1 {[%emt 0:01:02]} (40. g5 $1 $14 Qh4 41. Kc2) 40... Rxh1 {[%emt 0:02:17]} 41. Qxh1 {[%emt 0:00:02]} Qxh1 {[%emt 0:00:14]} 42. Rxh1 {[%emt 0:00:04][%mdl 4096] Endgame. KRB-KRB} Re7 {[%emt 0:00:28]} 43. Kd1 {[%emt 0:01:12]} Kg7 {[%emt 0:00:53]} 44. Rf1 {[%emt 0:02:01]} Re8 {[%emt 0:01:37]} 45. Rh1 {[%emt 0:00:07]} Re6 {[%emt 0:01:05]} 46. Bc1 {[%emt 0:00:36]} Re8 {[%emt 0:01:17]} 47. Bd2 {[%emt 0:00:05]} Kg8 {[%emt 0:00:23]} 48. Bc1 {[%emt 0:00:21]} Re7 {[%emt 0:01:28]} 49. Bd2 {[%emt 0:00:05]} Kg7 {[%emt 0:00:57]} 50. Bc1 {[%emt 0:14:35] White really could win this.   Weighted Error Value: White=0.15 (very precise) /Black=0.20 (precise) .  Mistake:       	White=3     	Black=4      Inaccurate:     	White=4     	Black=8      OK:         	White=18    	Black=14     Best:        	White=1     	Black=1      Strong:       	White=4     	Black=1} 1/2-1/2

[Event "Marshall CC FIDE Premier November 2024"]
[Site "New York"]
[Date "2024.11.02"]
[Round "1.2"]
[White "Zhu, Linxi"]
[Black "Shankar, Pranav"]
[Result "1-0"]
[ECO "B12"]
[WhiteElo "2143"]
[BlackElo "1956"]
[Annotator "RC"]
[PlyCount "79"]
[EventDate "2024.11.01"]
[EventType "swiss"]
[EventCountry "USA"]
[SourceTitle "playchess.com"]
[Source "ChessBase"]
[SourceQuality "1"]
[TimeControl "5400+30"]

1. e4 {[%emt 0:00:02]} c6 {[%emt 0:02:09]} 2. d4 {[%emt 0:00:11]} d5 {[%emt 0:00:14]} 3. f3 {[%emt 0:00:08]} dxe4 {[%emt 0:00:23]} 4. fxe4 {[%emt 0:00:06]} e5 {[%emt 0:00:06]} 5. Nf3 {[%emt 0:00:04]} Bg4 {[%emt 0:00:15]} 6. c3 {[%emt 0:00:14]} Nd7 {[%emt 0:02:13]} 7. Be2 {[%emt 0:00:09]} Ngf6 {[%emt 0:05:47]} 8. Nbd2 {[%emt 0:01:09]} Bd6 {[%emt 0:08:34]} 9. Nc4 {[%emt 0:01:19]} Bc7 {[%emt 0:02:27]} 10. Nfxe5 {[%emt 0:02:16]} Nxe5 {[%emt 0:20:38]} 11. Nxe5 {[%emt 0:00:54]} Bxe2 {[%emt 0:01:29]} 12. Qxe2 {[%emt 0:00:07]} Bxe5 {[%emt 0:01:35]} 13. dxe5 {[%emt 0:00:11]} Nd7 {[%emt 0:00:15]} 14. e6 {[%emt 0:08:08]} fxe6 {[%emt 0:01:14]} 15. O-O {[%emt 0:01:23]} Qe7 {[%emt 0:02:59]} 16. Kh1 {[%emt 0:01:33]} O-O-O {[%emt 0:02:28]} 17. Be3 {[%emt 0:02:49]} Kb8 {[%emt 0:08:14]} 18. Qf2 {[%emt 0:02:49]} Rhf8 {[%emt 0:02:58]} 19. Bxa7+ {[%emt 0:05:01]} Kc7 {[%emt 0:04:45]} 20. Qg3+ {[%emt 0:01:12]} e5 {[%emt 0:00:24]} 21. Be3 {[%emt 0:01:29]} Rf7 {[%emt 0:03:25]} 22. Rfe1 {[%emt 0:10:04]} Kc8 {[%emt 0:05:25]} 23. Qh3 {[%emt 0:02:41]} h6 {[%emt 0:00:47]} 24. a4 {[%emt 0:00:44]} Kc7 {[%emt 0:01:08]} 25. a5 {[%emt 0:00:12]} Nc5 {[%emt 0:00:32]} 26. b4 {[%emt 0:04:28]} Nd3 {[%emt 0:00:34]} 27. Bb6+ {[%emt 0:23:58]} Kb8 {[%emt 0:00:10]} 28. Red1 {[%emt 0:01:35]} Nf2+ {[%emt 0:04:07]} 29. Bxf2 {[%emt 0:00:06]} Rxd1+ {[%emt 0:01:48]} 30. Rxd1 {[%emt 0:00:12]} Rxf2 {[%emt 0:00:14]} 31. Qe3 {[%emt 0:04:25]} Ra2 {[%emt 0:05:44]} 32. Qb6 {[%emt 0:05:41]} Kc8 {[%emt 0:00:15]} 33. Rf1 {[%emt 0:01:01]} h5 {[%emt 0:04:32]} 34. h3 {[%emt 0:02:59]} h4 {[%emt 0:03:41]} 35. c4 {[%emt 0:04:19]} Ra4 {[%emt 0:05:18]} 36. b5 {[%emt 0:00:32]} cxb5 {[%emt 0:00:36]} 37. cxb5 {[%emt 0:00:09]} Rxe4 {[%emt 0:00:19]} 38. a6 {[%emt 0:00:09]} bxa6 {[%emt 0:00:43]} 39. Rc1+ {[%emt 0:00:12]} Kd7 {[%emt 0:00:05]} 40. Qc6+ {[%emt 0:00:06]} 1-0

[Event "Marshall CC FIDE Premier November 2024"]
[Site "New York"]
[Date "2024.11.02"]
[Round "1.3"]
[White "Cheung, Kyle"]
[Black "Hebbar, Eshaan"]
[Result "0-1"]
[ECO "C45"]
[WhiteElo "1882"]
[BlackElo "2130"]
[Annotator "RC"]
[PlyCount "78"]
[EventDate "2024.11.01"]
[EventType "swiss"]
[EventCountry "USA"]
[SourceTitle "playchess.com"]
[Source "ChessBase"]
[SourceQuality "1"]
[TimeControl "5400+30"]

1. e4 {[%emt 0:07:52]} e5 {[%emt 0:00:06]} 2. Nf3 {[%emt 0:00:01]} Nc6 {[%emt 0:00:08]} 3. d4 {[%emt 0:00:02]} exd4 {[%emt 0:00:07]} 4. Nxd4 {[%emt 0:00:02]} Bc5 {[%emt 0:00:09]} 5. Nb3 {[%emt 0:00:02]} Bb6 {[%emt 0:00:07]} 6. Nc3 {[%emt 0:00:04]} Nf6 {[%emt 0:00:06]} 7. Bg5 {[%emt 0:05:38]} h6 {[%emt 0:02:29]} 8. Bh4 {[%emt 0:05:33]} O-O {[%emt 0:00:20]} 9. Bd3 {[%emt 0:02:37]} Ne5 {[%emt 0:21:09]} 10. O-O {[%emt 0:15:08]} Ng6 {[%emt 0:00:04]} 11. Bg3 {[%emt 0:00:33]} Re8 {[%emt 0:00:07]} 12. Qd2 {[%emt 0:07:25]} d6 {[%emt 0:01:24]} 13. Kh1 {[%emt 0:07:23]} a5 {[%emt 0:20:26]} 14. a4 {[%emt 0:10:57]} Nh5 {[%emt 0:04:06]} 15. Nd5 {[%emt 0:01:34]} c6 {[%emt 0:00:41]} 16. Nxb6 {[%emt 0:01:43]} Nxg3+ {[%emt 0:00:03]} 17. fxg3 {[%emt 0:00:57]} Qxb6 {[%emt 0:00:04]} 18. Qc3 {[%emt 0:04:18]} Be6 {[%emt 0:04:14]} 19. Nd2 {[%emt 0:28:11]} Ne5 {[%emt 0:01:51]} 20. Nc4 {[%emt 0:00:00]} Bxc4 {[%emt 0:01:23]} 21. Bxc4 {[%emt 0:00:00]} Qc5 {[%emt 0:01:31]} 22. Bd3 {[%emt 0:00:00]} Qxc3 {[%emt 0:02:09]} 23. bxc3 {[%emt 0:00:00]} Nd7 {[%emt 0:05:07]} 24. Rfe1 {[%emt 0:00:00]} Nc5 {[%emt 0:00:27]} 25. Kg1 {[%emt 0:00:00]} Re7 {[%emt 0:00:37]} 26. Kf2 {[%emt 0:00:00]} Rae8 {[%emt 0:00:55]} 27. Reb1 {[%emt 0:00:00]} Nxe4+ {[%emt 0:01:53]} 28. Bxe4 {[%emt 0:00:00]} Rxe4 {[%emt 0:00:01]} 29. Rxb7 {[%emt 0:00:00]} Re2+ {[%emt 0:00:02]} 30. Kf1 {[%emt 0:00:00]} Rxc2 {[%emt 0:00:19]} 31. Re1 {[%emt 0:00:00]} Rxe1+ {[%emt 0:00:59]} 32. Kxe1 {[%emt 0:00:00]} Rxg2 {[%emt 0:01:23]} 33. Ra7 {[%emt 0:00:00]} Rxh2 {[%emt 0:00:06]} 34. Rxa5 {[%emt 0:00:00]} Rc2 {[%emt 0:00:07]} 35. Ra8+ {[%emt 0:00:00]} Kh7 {[%emt 0:00:02]} 36. a5 {[%emt 0:00:00]} Rxc3 {[%emt 0:00:10]} 37. Kd2 {[%emt 0:00:00]} Rxg3 {[%emt 0:01:50]} 38. Kc2 {[%emt 0:00:00]} h5 {[%emt 0:01:34]} 39. a6 {[%emt 0:10:00]} Ra3 {[%emt 0:00:48]} 0-1

[Event "Marshall CC FIDE Premier November 2024"]
[Site "New York"]
[Date "2024.11.02"]
[Round "1.4"]
[White "Paragua, Megan Althea"]
[Black "Shvarts, Tim"]
[Result "1-0"]
[ECO "C84"]
[WhiteElo "2190"]
[BlackElo "1902"]
[Annotator "RC"]
[PlyCount "77"]
[EventDate "2024.11.01"]
[EventType "swiss"]
[EventCountry "USA"]
[SourceTitle "playchess.com"]
[Source "ChessBase"]
[SourceQuality "1"]
[TimeControl "5400+30"]

1. e4 {[%emt 0:00:06]} e5 {[%emt 0:00:11]} 2. Nf3 {[%emt 0:01:16]} Nc6 {[%emt 0:00:06]} 3. Bb5 {[%emt 0:00:29]} a6 {[%emt 0:00:30]} 4. Ba4 {[%emt 0:00:04]} Nf6 {[%emt 0:00:05]} 5. d4 {[%emt 0:00:08]} exd4 {[%emt 0:00:10]} 6. O-O {[%emt 0:00:22]} Be7 {[%emt 0:00:07]} 7. e5 {[%emt 0:01:07]} Ne4 {[%emt 0:00:07]} 8. Re1 {[%emt 0:05:06]} Nc5 {[%emt 0:00:08]} 9. Bxc6 {[%emt 0:00:06]} dxc6 {[%emt 0:00:02]} 10. Nxd4 {[%emt 0:00:23]} Ne6 {[%emt 0:01:13]} 11. Be3 {[%emt 0:01:20]} Nxd4 {[%emt 0:01:51]} 12. Bxd4 {[%emt 0:00:34]} c5 {[%emt 0:01:40]} 13. Be3 {[%emt 0:00:47]} Qxd1 {[%emt 0:00:15]} 14. Rxd1 {[%emt 0:00:03]} Bf5 {[%emt 0:18:21]} 15. Nc3 {[%emt 0:04:41]} c6 {[%emt 0:01:52]} 16. Rd2 {[%emt 0:03:07]} O-O {[%emt 0:13:44]} 17. Na4 {[%emt 0:04:37]} c4 {[%emt 0:02:21]} 18. Bc5 {[%emt 0:08:48]} Bxc5 {[%emt 0:27:05]} 19. Nxc5 {[%emt 0:00:04]} Rfe8 {[%emt 0:00:54]} 20. f4 {[%emt 0:04:53]} Re7 {[%emt 0:04:46]} 21. Na4 {[%emt 0:04:48]} b5 {[%emt 0:02:34]} 22. Nc5 {[%emt 0:03:26]} g5 {[%emt 0:00:21]} 23. g3 {[%emt 0:00:37]} a5 {[%emt 0:01:14]} 24. c3 {[%emt 0:00:39]} b4 {[%emt 0:02:58]} 25. Rc1 {[%emt 0:02:01]} gxf4 {[%emt 0:00:52]} 26. gxf4 {[%emt 0:00:06]} Kh8 {[%emt 0:00:46]} 27. cxb4 {[%emt 0:05:04]} axb4 {[%emt 0:00:11]} 28. Rxc4 {[%emt 0:00:08]} Rxa2 {[%emt 0:00:32]} 29. Rxb4 {[%emt 0:00:29]} Ra1+ {[%emt 0:00:38]} 30. Kf2 {[%emt 0:02:13]} Rh1 {[%emt 0:01:03]} 31. Kg2 {[%emt 0:01:14]} Rc1 {[%emt 0:00:30]} 32. Ne4 {[%emt 0:02:03]} Ra7 {[%emt 0:00:25]} 33. Ng3 {[%emt 0:01:54]} Be6 {[%emt 0:00:40]} 34. Rd8+ {[%emt 0:00:10]} Kg7 {[%emt 0:00:02]} 35. f5 {[%emt 0:00:07]} Bd5+ {[%emt 0:00:01]} 36. Kh3 {[%emt 0:00:14]} Bf3 {[%emt 0:01:47]} 37. f6+ {[%emt 0:00:20]} Kh6 {[%emt 0:00:15]} 38. Rh4+ {[%emt 0:00:02]} Kg5 {[%emt 0:00:10]} 39. Rg8# {[%emt 0:00:02]} 1-0

[Event "Marshall CC FIDE Premier November 2024"]
[Site "New York"]
[Date "2024.11.02"]
[Round "1.5"]
[White "Tadevosyan, Levon"]
[Black "Hoffman, Luc"]
[Result "1-0"]
[ECO "B23"]
[WhiteElo "1867"]
[BlackElo "2088"]
[Annotator "RC"]
[PlyCount "85"]
[EventDate "2024.11.01"]
[EventType "swiss"]
[EventCountry "USA"]
[SourceTitle "playchess.com"]
[Source "ChessBase"]
[SourceQuality "1"]
[TimeControl "5400+30"]

1. e4 {[%emt 0:00:01]} c5 {[%emt 0:00:07]} 2. Ne2 {[%emt 0:00:15]} Nf6 {[%emt 0:03:24]} 3. Nbc3 {[%emt 0:00:05]} Nc6 {[%emt 0:00:36]} 4. g3 {[%emt 0:00:08]} h5 {[%emt 0:01:13]} 5. h3 {[%emt 0:00:11]} b5 {[%emt 0:09:32]} 6. Bg2 {[%emt 0:01:28]} b4 {[%emt 0:02:30]} 7. Na4 {[%emt 0:03:35]} e5 {[%emt 0:00:58]} 8. O-O {[%emt 0:03:23]} d6 {[%emt 0:00:34]} 9. c3 {[%emt 0:00:53]} Ba6 {[%emt 0:02:04]} 10. b3 {[%emt 0:01:55]} Be7 {[%emt 0:04:33]} 11. a3 {[%emt 0:01:33]} bxc3 {[%emt 0:00:41]} 12. dxc3 {[%emt 0:00:23]} Qa5 {[%emt 0:02:30]} 13. Bd2 {[%emt 0:09:47]} Bd3 {[%emt 0:06:20]} 14. f3 {[%emt 0:21:00]} Rb8 {[%emt 0:01:17]} 15. Rf2 {[%emt 0:02:10]} Bxe2 {[%emt 0:08:55]} 16. Rxe2 {[%emt 0:00:19]} Qb5 {[%emt 0:00:07]} 17. Rb1 {[%emt 0:06:23]} O-O {[%emt 0:02:48]} 18. Kh2 {[%emt 0:06:02]} Qd3 {[%emt 0:02:33]} 19. Rf2 {[%emt 0:08:59]} Qa6 {[%emt 0:01:04]} 20. Bg5 {[%emt 0:04:22]} Na5 {[%emt 0:06:09]} 21. Bf1 {[%emt 0:02:19]} Qc6 {[%emt 0:00:19]} 22. Bxf6 {[%emt 0:04:49]} Bxf6 {[%emt 0:00:09]} 23. b4 {[%emt 0:00:44]} h4 {[%emt 0:00:27]} 24. b5 {[%emt 0:05:22]} Qd7 {[%emt 0:01:07]} 25. Rd2 {[%emt 0:01:22]} hxg3+ {[%emt 0:02:27]} 26. Kg2 {[%emt 0:00:09]} Nb7 {[%emt 0:01:27]} 27. b6 {[%emt 0:01:14]} axb6 {[%emt 0:02:37]} 28. Nxb6 {[%emt 0:00:46]} Qc6 {[%emt 0:00:49]} 29. Nd5 {[%emt 0:00:18]} c4 {[%emt 0:01:29]} 30. Rb4 {[%emt 0:02:10]} Bg5 {[%emt 0:03:10]} 31. Rdb2 {[%emt 0:00:20]} f5 {[%emt 0:01:02]} 32. Bxc4 {[%emt 0:00:52]} Kh8 {[%emt 0:00:33]} 33. Qe2 {[%emt 0:02:44]} Rbc8 {[%emt 0:01:41]} 34. Bb5 {[%emt 0:02:35]} Qc5 {[%emt 0:00:44]} 35. Ba6 {[%emt 0:01:02]} Ra8 {[%emt 0:02:17]} 36. Rb5 {[%emt 0:01:45]} Qxa3 {[%emt 0:01:26]} 37. Bxb7 {[%emt 0:00:03]} Rab8 {[%emt 0:00:44]} 38. exf5 {[%emt 0:00:12]} Qa1 {[%emt 0:02:07]} 39. f4 {[%emt 0:01:36]} exf4 {[%emt 0:00:51]} 40. Ne7 {[%emt 0:01:26]} Kh7 {[%emt 0:02:47]} 41. Be4 {[%emt 0:02:05]} f3+ {[%emt 0:00:38]} 42. Qxf3 {[%emt 0:02:11]} Rxb5 {[%emt 0:06:49]} 43. Qh5+ {[%emt 0:00:19]} 1-0

[Event "Marshall CC FIDE Premier November 2024"]
[Site "New York"]
[Date "2024.11.02"]
[Round "1.6"]
[White "Chin, Spencer"]
[Black "Pan, Zachary"]
[Result "1-0"]
[ECO "D35"]
[WhiteElo "2035"]
[BlackElo "1898"]
[Annotator "RC"]
[PlyCount "55"]
[EventDate "2024.11.01"]
[EventType "swiss"]
[EventCountry "USA"]
[SourceTitle "playchess.com"]
[Source "ChessBase"]
[SourceQuality "1"]
[TimeControl "5400+30"]

1. d4 {[%emt 0:00:26]} Nf6 {[%emt 0:00:01]} 2. c4 {[%emt 0:00:08]} e6 {[%emt 0:00:02]} 3. Nc3 {[%emt 0:00:05]} d5 {[%emt 0:00:06]} 4. cxd5 {[%emt 0:00:34]} exd5 {[%emt 0:00:11]} 5. Bg5 {[%emt 0:00:07]} c6 {[%emt 0:00:07]} 6. e3 {[%emt 0:00:05]} h6 {[%emt 0:00:08]} 7. Bh4 {[%emt 0:00:31]} Be7 {[%emt 0:00:08]} 8. Bd3 {[%emt 0:00:06]} Ne4 {[%emt 0:00:10]} 9. Bxe7 {[%emt 0:02:19]} Qxe7 {[%emt 0:00:05]} 10. Nge2 {[%emt 0:02:00]} O-O {[%emt 0:00:19]} 11. O-O {[%emt 0:04:46]} Bf5 {[%emt 0:01:31]} 12. Qc2 {[%emt 0:02:45]} Nd7 {[%emt 0:02:32]} 13. Rfe1 {[%emt 0:01:25]} Ndf6 {[%emt 0:04:05]} 14. Nf4 {[%emt 0:07:52]} Qd7 {[%emt 0:17:10]} 15. f3 {[%emt 0:04:13]} Nd6 {[%emt 0:00:19]} 16. e4 {[%emt 0:03:18]} dxe4 {[%emt 0:07:46]} 17. fxe4 {[%emt 0:00:30]} Be6 {[%emt 0:08:00]} 18. e5 {[%emt 0:05:53]} Ng4 {[%emt 0:00:34]} 19. h3 {[%emt 0:03:11]} Nc4 {[%emt 0:04:18]} 20. hxg4 {[%emt 0:01:37]} Bxg4 {[%emt 0:07:47]} 21. Qf2 {[%emt 0:02:47]} Nxb2 {[%emt 0:00:45]} 22. Ne4 {[%emt 0:09:03]} Nxd3 {[%emt 0:00:37]} 23. Nxd3 {[%emt 0:00:09]} b6 {[%emt 0:01:15]} 24. Nd6 {[%emt 0:01:51]} f6 {[%emt 0:01:14]} 25. Qe3 {[%emt 0:03:31]} Rad8 {[%emt 0:01:56]} 26. Rac1 {[%emt 0:04:38]} fxe5 {[%emt 0:01:05]} 27. dxe5 {[%emt 0:00:17]} h5 {[%emt 0:00:41]} 28. Nf4 {[%emt 0:01:54]} 1-0

[Event "Marshall CC FIDE Premier November 2024"]
[Site "New York"]
[Date "2024.11.02"]
[Round "1.7"]
[White "Marzouq, Chowdhury"]
[Black "Marsh, James J"]
[Result "0-1"]
[ECO "E11"]
[WhiteElo "1948"]
[BlackElo "2049"]
[Annotator "RC"]
[PlyCount "54"]
[EventDate "2024.11.01"]
[EventType "swiss"]
[EventCountry "USA"]
[SourceTitle "playchess.com"]
[Source "ChessBase"]
[SourceQuality "1"]
[TimeControl "5400+30"]

1. d4 {[%emt 0:00:05]} d5 {[%emt 0:00:11]} 2. c4 {[%emt 0:00:06]} e6 {[%emt 0:00:06]} 3. Nf3 {[%emt 0:00:08]} Nf6 {[%emt 0:00:07]} 4. g3 {[%emt 0:00:06]} Bb4+ {[%emt 0:00:28]} 5. Bd2 {[%emt 0:00:11]} Be7 {[%emt 0:00:30]} 6. Bg2 {[%emt 0:00:04]} O-O {[%emt 0:00:07]} 7. O-O {[%emt 0:00:24]} Nbd7 {[%emt 0:00:10]} 8. Qc2 {[%emt 0:01:35]} c6 {[%emt 0:00:13]} 9. b3 {[%emt 0:03:57]} Ne4 {[%emt 0:03:08]} 10. Bc3 {[%emt 0:04:06]} a5 {[%emt 0:03:42]} 11. a4 {[%emt 0:01:23]} b6 {[%emt 0:05:40]} 12. Nbd2 {[%emt 0:03:03]} Nxc3 {[%emt 0:01:15]} 13. Qxc3 {[%emt 0:00:03]} Bb7 {[%emt 0:02:15]} 14. e4 {[%emt 0:08:37]} dxe4 {[%emt 0:03:15]} 15. Nxe4 {[%emt 0:00:03]} c5 {[%emt 0:00:44]} 16. Qc2 {[%emt 0:00:19]} Nf6 {[%emt 0:01:51]} 17. Nfg5 {[%emt 0:22:42]} Nxe4 {[%emt 0:02:15]} 18. Nxe4 {[%emt 0:02:44]} cxd4 {[%emt 0:02:47]} 19. Rad1 {[%emt 0:00:43]} Qd7 {[%emt 0:04:30]} 20. f4 {[%emt 0:02:06]} Rad8 {[%emt 0:08:31]} 21. Rd3 {[%emt 0:01:49]} Rfe8 {[%emt 0:04:21]} 22. Rfd1 {[%emt 0:04:32]} Bc5 {[%emt 0:00:15]} 23. Qd2 {[%emt 0:03:06]} e5 {[%emt 0:06:29]} 24. Rf1 {[%emt 0:08:12]} Bb4 {[%emt 0:02:43]} 25. Qf2 {[%emt 0:01:47]} f5 {[%emt 0:00:20]} 26. Ng5 {[%emt 0:00:25]} e4 {[%emt 0:01:49]} 27. Rdd1 {[%emt 0:00:07]} e3 {[%emt 0:04:57]} 0-1

[Event "Marshall CC FIDE Premier November 2024"]
[Site "New York"]
[Date "2024.11.02"]
[Round "1.8"]
[White "Yang, Daniel"]
[Black "Muthukumaran, Gurru"]
[Result "1/2-1/2"]
[ECO "A57"]
[WhiteElo "2101"]
[BlackElo "1859"]
[Annotator "RC"]
[PlyCount "141"]
[EventDate "2024.11.01"]
[EventType "swiss"]
[EventCountry "USA"]
[SourceTitle "playchess.com"]
[Source "ChessBase"]
[SourceQuality "1"]
[TimeControl "5400+30"]

1. d4 {[%emt 0:00:02]} Nf6 {[%emt 0:00:06]} 2. c4 {[%emt 0:00:07]} c5 {[%emt 0:00:05]} 3. d5 {[%emt 0:00:12]} b5 {[%emt 0:00:07]} 4. cxb5 {[%emt 0:00:18]} a6 {[%emt 0:00:07]} 5. e3 {[%emt 0:03:29]} d6 {[%emt 0:02:50]} 6. Nc3 {[%emt 0:02:01]} g6 {[%emt 0:03:50]} 7. Nf3 {[%emt 0:01:57]} Bg7 {[%emt 0:00:08]} 8. Be2 {[%emt 0:04:53]} O-O {[%emt 0:00:15]} 9. O-O {[%emt 0:01:15]} axb5 {[%emt 0:00:46]} 10. Bxb5 {[%emt 0:00:33]} Ba6 {[%emt 0:01:07]} 11. Bxa6 {[%emt 0:04:03]} Nxa6 {[%emt 0:00:42]} 12. Qe2 {[%emt 0:01:41]} Qb6 {[%emt 0:01:04]} 13. Rd1 {[%emt 0:07:44]} Rfb8 {[%emt 0:04:37]} 14. Rb1 {[%emt 0:01:41]} Nd7 {[%emt 0:03:37]} 15. Bd2 {[%emt 0:01:43]} Nc7 {[%emt 0:02:49]} 16. Be1 {[%emt 0:05:32]} Nb5 {[%emt 0:02:17]} 17. Qc2 {[%emt 0:01:28]} Qa6 {[%emt 0:11:45]} 18. a3 {[%emt 0:03:48]} Nxc3 {[%emt 0:07:40]} 19. Bxc3 {[%emt 0:00:20]} Qc4 {[%emt 0:01:33]} 20. Rd3 {[%emt 0:06:44]} Bxc3 {[%emt 0:11:41]} 21. Qxc3 {[%emt 0:00:40]} Qa2 {[%emt 0:15:28]} 22. Qc1 {[%emt 0:04:11]} c4 {[%emt 0:11:22]} 23. Rc3 {[%emt 0:01:57]} Nc5 {[%emt 0:01:49]} 24. Rxc4 {[%emt 0:05:52]} Nd3 {[%emt 0:04:33]} 25. Qc2 {[%emt 0:00:49]} Rxa3 {[%emt 0:02:32]} 26. Rc8+ {[%emt 0:12:13]} Rxc8 {[%emt 0:00:04]} 27. Qxc8+ {[%emt 0:00:05]} Kg7 {[%emt 0:00:09]} 28. Nd2 {[%emt 0:01:40]} Nxb2 {[%emt 0:03:57]} 29. Qc2 {[%emt 0:13:13]} Nd3 {[%emt 0:01:45]} 30. Qxa2 {[%emt 0:02:33]} Rxa2 {[%emt 0:00:01]} 31. Rd1 {[%emt 0:02:38]} Nb2 {[%emt 0:00:51]} 32. Rb1 {[%emt 0:02:20]} Na4 {[%emt 0:01:23]} 33. Nb3 {[%emt 0:02:32]} Nc3 {[%emt 0:00:33]} 34. Ra1 {[%emt 0:00:20]} Rxa1+ {[%emt 0:00:52]} 35. Nxa1 {[%emt 0:00:01]} Nxd5 {[%emt 0:00:11]} 36. Nc2 {[%emt 0:00:17]} e5 {[%emt 0:01:20]} 37. f3 {[%emt 0:01:06]} Kf6 {[%emt 0:00:19]} 38. Kf2 {[%emt 0:00:14]} Ke6 {[%emt 0:00:08]} 39. e4 {[%emt 0:01:11]} Nb6 {[%emt 0:00:19]} 40. Ke3 {[%emt 0:00:35]} d5 {[%emt 0:01:36]} 41. exd5+ {[%emt 0:00:57]} Nxd5+ {[%emt 0:00:19]} 42. Kf2 {[%emt 0:00:20]} Kd6 {[%emt 0:00:19]} 43. g3 {[%emt 0:00:39]} Kc5 {[%emt 0:00:48]} 44. Ke2 {[%emt 0:00:13]} f5 {[%emt 0:00:46]} 45. Kd2 {[%emt 0:00:49]} h5 {[%emt 0:00:59]} 46. Ne1 {[%emt 0:01:09]} Kd4 {[%emt 0:01:31]} 47. Nc2+ {[%emt 0:00:20]} Kc5 {[%emt 0:00:07]} 48. Ne1 {[%emt 0:00:10]} g5 {[%emt 0:00:39]} 49. Nc2 {[%emt 0:01:17]} g4 {[%emt 0:00:45]} 50. Ne1 {[%emt 0:00:52]} Kd4 {[%emt 0:01:19]} 51. Nc2+ {[%emt 0:00:14]} Kc5 {[%emt 0:00:03]} 52. Ne1 {[%emt 0:00:03]} gxf3 {[%emt 0:00:25]} 53. Nxf3 {[%emt 0:00:05]} Kd6 {[%emt 0:00:59]} 54. Ke2 {[%emt 0:00:31]} Ke6 {[%emt 0:00:11]} 55. Ng5+ {[%emt 0:00:50]} Kf6 {[%emt 0:00:15]} 56. Nf3 {[%emt 0:00:28]} e4 {[%emt 0:01:08]} 57. Nd4 {[%emt 0:00:29]} Ke5 {[%emt 0:00:32]} 58. Nc6+ {[%emt 0:00:22]} Kd6 {[%emt 0:00:12]} 59. Nd4 {[%emt 0:00:04]} Ke5 {[%emt 0:00:10]} 60. Nc6+ {[%emt 0:00:21]} Kf6 {[%emt 0:00:06]} 61. Nd4 {[%emt 0:00:12]} Kg5 {[%emt 0:00:19]} 62. h3 {[%emt 0:01:16]} Kf6 {[%emt 0:00:36]} 63. Nc6 {[%emt 0:00:26]} h4 {[%emt 0:00:39]} 64. Kf2 {[%emt 0:01:53]} e3+ {[%emt 0:01:14]} 65. Kf3 {[%emt 0:00:21]} hxg3 {[%emt 0:00:21]} 66. Kxg3 {[%emt 0:00:07]} f4+ {[%emt 0:00:50]} 67. Kf3 {[%emt 0:00:09]} Nc3 {[%emt 0:00:48]} 68. Nd4 {[%emt 0:01:20]} Ke5 {[%emt 0:00:08]} 69. Nc2 {[%emt 0:00:15]} Ne4 {[%emt 0:00:45]} 70. Nxe3 {[%emt 0:00:15]} Nc3 {[%emt 0:01:59]} 71. Nc2 {[%emt 0:00:30]} 1/2-1/2